[Event "Titled Tuesday Blitz April 12 Early 2022"]
[White "Le Ruyet, Leopold"]
[Black "Abdusattorov, Nodirbek"]
[WhiteFideId "645923"]
[BlackFideId "14204118"]
[WhiteElo "2276"]
[BlackElo "2663"]
[Result "0-1"]
[Round "01"]
[TimeControl "180+1"]
[Date "2022.04.12"]
[WhiteClock "0:00:10"]
[BlackClock "0:01:25"]

1. e4 {[%clk 0:02:55]}  c5 {[%clk 0:02:59]} 2. c3 {[%clk 0:02:45]}  Nf6 {[%clk 0:02:57]} 3. e5 {[%clk 0:02:45]}  Nd5 {[%clk 0:02:58]} 4. Nf3 {[%clk 0:02:44]}  e6 {[%clk 0:02:55]} 5. Bc4 {[%clk 0:02:42]}  Nb6 {[%clk 0:02:54]} 6. Bb3 {[%clk 0:02:42]}  d6 {[%clk 0:02:49]} 7. exd6 {[%clk 0:02:31]}  Bxd6 {[%clk 0:02:50]} 8. d4 {[%clk 0:02:32]}  O-O {[%clk 0:02:50]} 9. O-O {[%clk 0:02:31]}  Nc6 {[%clk 0:02:50]} 10. Na3 {[%clk 0:02:24]}  cxd4 {[%clk 0:02:46]} 11. cxd4 {[%clk 0:02:24]}  Bd7 {[%clk 0:02:36]} 12. Nb5 {[%clk 0:02:21]}  Be7 {[%clk 0:02:34]} 13. Nc3 {[%clk 0:02:20]}  Rc8 {[%clk 0:02:35]} 14. Bf4 {[%clk 0:02:09]}  Nb4 {[%clk 0:02:13]} 15. Ne5 {[%clk 0:02:05]}  Bc6 {[%clk 0:02:14]} 16. a3 {[%clk 0:01:43]}  N4d5 {[%clk 0:02:13]} 17. Bg3 {[%clk 0:01:41]}  Nxc3 {[%clk 0:02:13]} 18. bxc3 {[%clk 0:01:41]}  Bd5 {[%clk 0:02:13]} 19. Bc2 {[%clk 0:01:22]}  Rxc3 {[%clk 0:02:13]} 20. Qd2 {[%clk 0:01:22]}  Rc8 {[%clk 0:01:55]} 21. Qd3 {[%clk 0:01:03]}  f5 {[%clk 0:01:55]} 22. Bb3 {[%clk 0:00:58]}  f4 {[%clk 0:01:52]} 23. Bc2 {[%clk 0:00:44]}  Rxc2 {[%clk 0:01:53]} 24. Qxc2 {[%clk 0:00:43]}  fxg3 {[%clk 0:01:54]} 25. fxg3 {[%clk 0:00:39]}  Bf6 {[%clk 0:01:52]} 26. Rad1 {[%clk 0:00:34]}  Nd7 {[%clk 0:01:53]} 27. Qe2 {[%clk 0:00:29]}  Nxe5 {[%clk 0:01:51]} 28. dxe5 {[%clk 0:00:29]}  Be7 {[%clk 0:01:52]} 29. Rxf8+ {[%clk 0:00:27]}  Bxf8 {[%clk 0:01:49]} 30. h3 {[%clk 0:00:20]}  Bxa3 {[%clk 0:01:46]} 31. Kh2 {[%clk 0:00:20]}  Bc5 {[%clk 0:01:38]} 32. Qg4 {[%clk 0:00:20]}  Qe8 {[%clk 0:01:34]} 33. Rf1 {[%clk 0:00:18]}  b5 {[%clk 0:01:34]} 34. h4 {[%clk 0:00:15]}  b4 {[%clk 0:01:33]} 35. h5 {[%clk 0:00:15]}  h6 {[%clk 0:01:33]} 36. Rf6 {[%clk 0:00:12]}  Kh8 {[%clk 0:01:33]} 37. Rg6 {[%clk 0:00:12]}  Bf8 {[%clk 0:01:33]} 38. Qf4 {[%clk 0:00:10]}  b3 {[%clk 0:01:33]} 39. g4 {[%clk 0:00:10]}  b2 {[%clk 0:01:32]} 40. g5 {[%clk 0:00:10]}  b1=Q {[%clk 0:01:30]} 41. gxh6 {[%clk 0:00:10]}  gxh6 {[%clk 0:01:25]} 0-1


[Site "https://www.chess.com"]

[Event "Titled Tuesday Blitz April 12 Early 2022"]
[White "Li, Xueyi"]
[Black "Obolenskikh, Dmitry"]
[WhiteFideId "8605912"]
[BlackFideId "4156013"]
[WhiteElo "2091"]
[BlackElo "2512"]
[Result "0-1"]
[Round "01"]
[TimeControl "180+1"]
[Date "2022.04.13"]
[WhiteClock "0:00:17"]
[BlackClock "0:01:36"]

1. d4 {[%clk 0:02:59]}  d5 {[%clk 0:02:59]} 2. c4 {[%clk 0:02:59]}  e6 {[%clk 0:02:59]} 3. Nf3 {[%clk 0:02:58]}  Nf6 {[%clk 0:02:57]} 4. g3 {[%clk 0:02:58]}  Bb4+ {[%clk 0:02:56]} 5. Bd2 {[%clk 0:02:53]}  Be7 {[%clk 0:02:56]} 6. Bg2 {[%clk 0:02:47]}  O-O {[%clk 0:02:57]} 7. O-O {[%clk 0:02:44]}  c6 {[%clk 0:02:56]} 8. Nc3 {[%clk 0:02:40]}  b6 {[%clk 0:02:56]} 9. Ne5 {[%clk 0:02:38]}  Bb7 {[%clk 0:02:49]} 10. Rc1 {[%clk 0:02:23]}  Na6 {[%clk 0:02:44]} 11. Bg5 {[%clk 0:02:17]}  Nd7 {[%clk 0:02:29]} 12. Bxe7 {[%clk 0:01:57]}  Qxe7 {[%clk 0:02:29]} 13. cxd5 {[%clk 0:01:07]}  Nxe5 {[%clk 0:02:27]} 14. dxe5 {[%clk 0:01:04]}  cxd5 {[%clk 0:02:26]} 15. e4 {[%clk 0:01:04]}  dxe4 {[%clk 0:02:21]} 16. Nxe4 {[%clk 0:01:02]}  Bxe4 {[%clk 0:02:20]} 17. Bxe4 {[%clk 0:01:00]}  Rad8 {[%clk 0:02:16]} 18. Qc2 {[%clk 0:00:50]}  g6 {[%clk 0:02:13]} 19. h4 {[%clk 0:00:47]}  Nc5 {[%clk 0:02:13]} 20. Rcd1 {[%clk 0:00:46]}  Rxd1 {[%clk 0:02:06]} 21. Rxd1 {[%clk 0:00:44]}  Rd8 {[%clk 0:02:07]} 22. Bf3 {[%clk 0:00:37]}  a5 {[%clk 0:02:02]} 23. a3 {[%clk 0:00:37]}  Rxd1+ {[%clk 0:02:01]} 24. Qxd1 {[%clk 0:00:36]}  Nd7 {[%clk 0:01:57]} 25. Qd6 {[%clk 0:00:34]}  Qxd6 {[%clk 0:01:44]} 26. exd6 {[%clk 0:00:34]}  Kf8 {[%clk 0:01:45]} 27. Bc6 {[%clk 0:00:34]}  Ne5 {[%clk 0:01:44]} 28. Bb5 {[%clk 0:00:33]}  f6 {[%clk 0:01:44]} 29. f4 {[%clk 0:00:31]}  Nf7 {[%clk 0:01:44]} 30. d7 {[%clk 0:00:31]}  Ke7 {[%clk 0:01:44]} 31. Kg2 {[%clk 0:00:24]}  Nd6 {[%clk 0:01:44]} 32. Bc6 {[%clk 0:00:22]}  Nc4 {[%clk 0:01:42]} 33. b3 {[%clk 0:00:18]}  Nxa3 {[%clk 0:01:39]} 34. g4 {[%clk 0:00:19]}  h6 {[%clk 0:01:38]} 35. g5 {[%clk 0:00:17]}  hxg5 {[%clk 0:01:36]} 0-1


[Site "https://www.chess.com"]

[Event "Titled Tuesday Blitz April 12 Early 2022"]
[White "Lobachev, Yury"]
[Black "Omelja, Artem"]
[WhiteFideId "24138177"]
[BlackFideId "14119846"]
[WhiteElo "2309"]
[BlackElo "2382"]
[Result "0-1"]
[Round "01"]
[TimeControl "180+1"]
[Date "2022.04.13"]
[WhiteClock "0:00:54"]
[BlackClock "0:00:17"]

1. c4 {[%clk 0:02:58]}  c6 {[%clk 0:02:55]} 2. Nc3 {[%clk 0:02:58]}  d5 {[%clk 0:02:52]} 3. cxd5 {[%clk 0:02:59]}  cxd5 {[%clk 0:02:53]} 4. d4 {[%clk 0:02:59]}  Nf6 {[%clk 0:02:53]} 5. g3 {[%clk 0:03:00]}  Nc6 {[%clk 0:02:52]} 6. Bg2 {[%clk 0:03:00]}  e6 {[%clk 0:02:46]} 7. Nf3 {[%clk 0:03:00]}  Be7 {[%clk 0:02:46]} 8. O-O {[%clk 0:03:01]}  O-O {[%clk 0:02:46]} 9. Bg5 {[%clk 0:03:01]}  h6 {[%clk 0:02:39]} 10. Bxf6 {[%clk 0:03:01]}  Bxf6 {[%clk 0:02:39]} 11. e3 {[%clk 0:03:01]}  a6 {[%clk 0:02:37]} 12. a3 {[%clk 0:03:01]}  b5 {[%clk 0:02:36]} 13. b4 {[%clk 0:03:01]}  Bb7 {[%clk 0:02:36]} 14. Rc1 {[%clk 0:03:02]}  Qb6 {[%clk 0:02:32]} 15. Nd2 {[%clk 0:02:52]}  a5 {[%clk 0:02:08]} 16. bxa5 {[%clk 0:02:43]}  Rxa5 {[%clk 0:02:09]} 17. Nb3 {[%clk 0:02:44]}  Rxa3 {[%clk 0:02:03]} 18. Nc5 {[%clk 0:02:44]}  Rfa8 {[%clk 0:01:54]} 19. Ne2 {[%clk 0:02:12]}  Be7 {[%clk 0:01:47]} 20. Nf4 {[%clk 0:02:01]}  Bxc5 {[%clk 0:01:41]} 21. Rxc5 {[%clk 0:02:02]}  b4 {[%clk 0:01:41]} 22. Re1 {[%clk 0:01:53]}  b3 {[%clk 0:01:37]} 23. Bf1 {[%clk 0:01:53]}  b2 {[%clk 0:01:23]} 24. Rb5 {[%clk 0:01:53]}  Qxb5 {[%clk 0:01:01]} 25. Bxb5 {[%clk 0:01:51]}  Ra1 {[%clk 0:01:01]} 26. Nd3 {[%clk 0:01:08]}  Rxd1 {[%clk 0:00:28]} 27. Rxd1 {[%clk 0:01:09]}  Ra2 {[%clk 0:00:28]} 28. Kg2 {[%clk 0:01:00]}  Na5 {[%clk 0:00:17]} 29. Rb1 {[%clk 0:00:55]}  Nc4 {[%clk 0:00:17]} 30. Bxc4 {[%clk 0:00:54]}  dxc4+ {[%clk 0:00:17]} 0-1


[Site "https://www.chess.com"]

[Event "Titled Tuesday Blitz April 12 Early 2022"]
[White "Lopez, Henry"]
[Black "Kucuksari, Kaan"]
[WhiteFideId "5203830"]
[BlackFideId "6380166"]
[WhiteElo "2177"]
[BlackElo "2305"]
[Result "1-0"]
[Round "01"]
[TimeControl "180+1"]
[Date "2022.04.13"]
[WhiteClock "0:00:18"]
[BlackClock "0:00:03"]

1. d4 {[%clk 0:02:59]}  Nf6 {[%clk 0:02:37]} 2. Nf3 {[%clk 0:02:58]}  d5 {[%clk 0:02:37]} 3. c4 {[%clk 0:02:57]}  c6 {[%clk 0:02:31]} 4. Nc3 {[%clk 0:02:56]}  e6 {[%clk 0:02:31]} 5. Bg5 {[%clk 0:02:55]}  Be7 {[%clk 0:02:27]} 6. e3 {[%clk 0:02:54]}  O-O {[%clk 0:02:25]} 7. Rc1 {[%clk 0:02:54]}  Nbd7 {[%clk 0:02:24]} 8. cxd5 {[%clk 0:02:53]}  exd5 {[%clk 0:02:23]} 9. Bd3 {[%clk 0:02:51]}  h6 {[%clk 0:02:19]} 10. Bh4 {[%clk 0:02:50]}  Ne4 {[%clk 0:02:19]} 11. Bxe7 {[%clk 0:02:49]}  Qxe7 {[%clk 0:02:20]} 12. O-O {[%clk 0:02:49]}  f5 {[%clk 0:02:17]} 13. Qc2 {[%clk 0:02:48]}  a5 {[%clk 0:02:15]} 14. Rce1 {[%clk 0:02:46]}  b5 {[%clk 0:02:14]} 15. Nd2 {[%clk 0:02:42]}  Bb7 {[%clk 0:02:13]} 16. f3 {[%clk 0:02:41]}  Nef6 {[%clk 0:02:09]} 17. Bxf5 {[%clk 0:02:40]}  Nb6 {[%clk 0:02:03]} 18. Nb3 {[%clk 0:02:22]}  b4 {[%clk 0:01:58]} 19. Nd1 {[%clk 0:02:21]}  Nc4 {[%clk 0:01:56]} 20. Nc5 {[%clk 0:02:19]}  Ba6 {[%clk 0:01:50]} 21. Nxa6 {[%clk 0:02:17]}  Rxa6 {[%clk 0:01:51]} 22. Bd3 {[%clk 0:02:17]}  c5 {[%clk 0:01:50]} 23. b3 {[%clk 0:02:15]}  Na3 {[%clk 0:01:45]} 24. Qe2 {[%clk 0:02:14]}  Re6 {[%clk 0:01:42]} 25. dxc5 {[%clk 0:02:12]}  Qxc5 {[%clk 0:01:43]} 26. Qd2 {[%clk 0:02:12]}  Rfe8 {[%clk 0:01:39]} 27. Kh1 {[%clk 0:02:11]}  Kh8 {[%clk 0:01:39]} 28. Re2 {[%clk 0:02:03]}  Nb5 {[%clk 0:01:15]} 29. Bxb5 {[%clk 0:02:00]}  Qxb5 {[%clk 0:01:16]} 30. Rfe1 {[%clk 0:02:00]}  Nh5 {[%clk 0:01:07]} 31. Qd4 {[%clk 0:01:40]}  Nf6 {[%clk 0:01:05]} 32. Kg1 {[%clk 0:01:38]}  Kg8 {[%clk 0:01:04]} 33. Nf2 {[%clk 0:01:37]}  Re5 {[%clk 0:00:54]} 34. Nd3 {[%clk 0:01:32]}  R5e7 {[%clk 0:00:52]} 35. Nf4 {[%clk 0:01:32]}  Qc6 {[%clk 0:00:45]} 36. Rd2 {[%clk 0:01:18]}  Re5 {[%clk 0:00:35]} 37. h4 {[%clk 0:01:11]}  Qc3 {[%clk 0:00:31]} 38. Kf2 {[%clk 0:01:08]}  g5 {[%clk 0:00:25]} 39. hxg5 {[%clk 0:01:01]}  hxg5 {[%clk 0:00:26]} 40. Nh3 {[%clk 0:00:49]}  g4 {[%clk 0:00:13]} 41. Nf4 {[%clk 0:00:48]}  g3+ {[%clk 0:00:07]} 42. Kxg3 {[%clk 0:00:43]}  Kf7 {[%clk 0:00:07]} 43. Kf2 {[%clk 0:00:42]}  R8e7 {[%clk 0:00:04]} 44. Qxc3 {[%clk 0:00:38]}  bxc3 {[%clk 0:00:05]} 45. Rd3 {[%clk 0:00:38]}  Rc7 {[%clk 0:00:06]} 46. Rc1 {[%clk 0:00:37]}  c2 {[%clk 0:00:06]} 47. Ke2 {[%clk 0:00:36]}  Nd7 {[%clk 0:00:04]} 48. Kd2 {[%clk 0:00:35]}  Nc5 {[%clk 0:00:04]} 49. Rc3 {[%clk 0:00:34]}  Ree7 {[%clk 0:00:02]} 50. R1xc2 {[%clk 0:00:34]}  d4 {[%clk 0:00:01]} 51. exd4 {[%clk 0:00:32]}  Rcd7 {[%clk 0:00:02]} 52. Rxc5 {[%clk 0:00:19]}  Rxd4+ {[%clk 0:00:03]} 53. Kc1 {[%clk 0:00:20]}  Red7 {[%clk 0:00:03]} 54. Ne2 {[%clk 0:00:19]}  Rd1+ {[%clk 0:00:03]} 55. Kb2 {[%clk 0:00:19]}  Re1 {[%clk 0:00:04]} 56. Nc3 {[%clk 0:00:19]}  a4 {[%clk 0:00:03]} 57. Nxa4 {[%clk 0:00:18]} 1-0


[Site "https://www.chess.com"]

[Event "Titled Tuesday Blitz April 12 Early 2022"]
[White "Lorparizangeneh, Shahin"]
[Black "Rabineau, Clement"]
[WhiteFideId "12521604"]
[BlackFideId "628891"]
[WhiteElo "2525"]
[BlackElo "2237"]
[Result "1-0"]
[Round "01"]
[TimeControl "180+1"]
[Date "2022.04.13"]
[WhiteClock "0:02:03"]
[BlackClock "0:00:02"]

1. e4 {[%clk 0:02:59]}  d6 {[%clk 0:03:00]} 2. d4 {[%clk 0:02:58]}  g6 {[%clk 0:03:01]} 3. c4 {[%clk 0:02:56]}  Bg7 {[%clk 0:03:01]} 4. Nc3 {[%clk 0:02:55]}  e5 {[%clk 0:03:01]} 5. Nge2 {[%clk 0:02:51]}  exd4 {[%clk 0:03:01]} 6. Nxd4 {[%clk 0:02:51]}  Nc6 {[%clk 0:03:01]} 7. Be3 {[%clk 0:02:51]}  Nge7 {[%clk 0:03:01]} 8. h4 {[%clk 0:02:49]}  f5 {[%clk 0:03:01]} 9. h5 {[%clk 0:02:49]}  fxe4 {[%clk 0:02:59]} 10. h6 {[%clk 0:02:42]}  Be5 {[%clk 0:02:31]} 11. Nxe4 {[%clk 0:02:41]}  Nf5 {[%clk 0:02:24]} 12. Bg5 {[%clk 0:02:32]}  Qd7 {[%clk 0:02:24]} 13. Nxf5 {[%clk 0:02:21]}  gxf5 {[%clk 0:01:15]} 14. Nf6+ {[%clk 0:02:18]}  Bxf6 {[%clk 0:01:14]} 15. Bxf6 {[%clk 0:02:19]}  Qe6+ {[%clk 0:01:03]} 16. Qe2 {[%clk 0:02:17]}  O-O {[%clk 0:00:50]} 17. Bc3 {[%clk 0:02:13]}  f4 {[%clk 0:00:34]} 18. O-O-O {[%clk 0:02:09]}  Qxe2 {[%clk 0:00:24]} 19. Bxe2 {[%clk 0:02:10]}  Bf5 {[%clk 0:00:24]} 20. Bf3 {[%clk 0:02:11]}  Rfe8 {[%clk 0:00:06]} 21. Rh5 {[%clk 0:02:04]}  Bg6 {[%clk 0:00:05]} 22. Bd5+ {[%clk 0:02:04]}  Kf8 {[%clk 0:00:06]} 23. Rh4 {[%clk 0:02:05]}  Ke7 {[%clk 0:00:02]} 24. Rxf4 {[%clk 0:02:02]}  Rf8 {[%clk 0:00:03]} 25. Re1+ {[%clk 0:02:02]}  Kd7 {[%clk 0:00:02]} 26. Be6+ {[%clk 0:02:03]} 1-0


[Site "https://www.chess.com"]

[Event "Titled Tuesday Blitz April 12 Early 2022"]
[White "Mangialardo, Tiago Carvalho"]
[Black "Hnydiuk, Aleksander"]
[WhiteFideId "2130718"]
[BlackFideId "1109057"]
[WhiteElo "2043"]
[BlackElo "2374"]
[Result "0-1"]
[Round "01"]
[TimeControl "180+1"]
[Date "2022.04.13"]
[WhiteClock "0:00:04"]
[BlackClock "0:01:14"]

1. e4 {[%clk 0:02:56]}  Nf6 {[%clk 0:02:59]} 2. e5 {[%clk 0:02:53]}  Nd5 {[%clk 0:02:59]} 3. d4 {[%clk 0:02:52]}  d6 {[%clk 0:02:59]} 4. Nf3 {[%clk 0:02:50]}  dxe5 {[%clk 0:02:59]} 5. dxe5 {[%clk 0:02:50]}  Bg4 {[%clk 0:02:54]} 6. Be2 {[%clk 0:02:47]}  Nc6 {[%clk 0:02:54]} 7. O-O {[%clk 0:02:46]}  e6 {[%clk 0:02:53]} 8. c4 {[%clk 0:02:41]}  Ndb4 {[%clk 0:02:45]} 9. Qb3 {[%clk 0:02:38]}  Bxf3 {[%clk 0:02:29]} 10. Bxf3 {[%clk 0:02:39]}  Nd4 {[%clk 0:02:04]} 11. Qa4+ {[%clk 0:02:36]}  Qd7 {[%clk 0:01:45]} 12. Qxd7+ {[%clk 0:02:33]}  Kxd7 {[%clk 0:01:46]} 13. Rd1 {[%clk 0:02:32]}  Nc2 {[%clk 0:01:46]} 14. Bxb7 {[%clk 0:02:22]}  Rb8 {[%clk 0:01:41]} 15. Be4 {[%clk 0:02:21]}  Nxa1 {[%clk 0:01:38]} 16. Rxd4+ {[%clk 0:02:18]}  Kc8 {[%clk 0:01:38]} 17. Nc3 {[%clk 0:02:01]}  Bc5 {[%clk 0:01:35]} 18. Rd1 {[%clk 0:01:48]}  Rd8 {[%clk 0:01:35]} 19. Rxd8+ {[%clk 0:00:24]}  Kxd8 {[%clk 0:01:36]} 20. Kf1 {[%clk 0:00:11]}  Ke7 {[%clk 0:01:30]} 21. Ke2 {[%clk 0:00:07]}  Bd4 {[%clk 0:01:30]} 22. f4 {[%clk 0:00:06]}  Rb4 {[%clk 0:01:23]} 23. Kd3 {[%clk 0:00:04]}  Bc5 {[%clk 0:01:14]} 0-1


[Site "https://www.chess.com"]

[Event "Titled Tuesday Blitz April 12 Early 2022"]
[White "Manukian, Artak"]
[Black "MikeKorovin"]
[WhiteFideId "13301373"]
[WhiteElo "2366"]
[BlackElo "2713"]
[Result "0-1"]
[Round "01"]
[TimeControl "180+1"]
[Date "2022.04.13"]
[WhiteClock "0:00:01"]
[BlackClock "0:03:01"]

1. e4 {[%clk 0:00:17]}  e6 {[%clk 0:03:00]} 2. Nf3 {[%clk 0:00:11]}  d5 {[%clk 0:03:01]} 3. exd5 {[%clk 0:00:07]}  exd5 {[%clk 0:03:02]} 4. d4 {[%clk 0:00:07]}  Nc6 {[%clk 0:03:03]} 5. c3 {[%clk 0:00:07]}  Bd6 {[%clk 0:03:04]} 6. Bd3 {[%clk 0:00:07]}  Nge7 {[%clk 0:03:05]} 7. O-O {[%clk 0:00:08]}  Bg4 {[%clk 0:03:02]} 8. h3 {[%clk 0:00:07]}  Bh5 {[%clk 0:03:01]} 9. Bg5 {[%clk 0:00:06]}  f6 {[%clk 0:03:01]} 10. Bh4 {[%clk 0:00:06]}  Qd7 {[%clk 0:03:01]} 11. Bg3 {[%clk 0:00:05]}  O-O {[%clk 0:03:01]} 12. Bxd6 {[%clk 0:00:02]}  Qxd6 {[%clk 0:03:02]} 13. Nbd2 {[%clk 0:00:01]}  Rae8 {[%clk 0:03:01]} 0-1


[Site "https://www.chess.com"]

[Event "Titled Tuesday Blitz April 12 Early 2022"]
[White "Meshkovs, Nikita"]
[Black "Caputcuoglu, Zeki Berke"]
[WhiteFideId "11602740"]
[BlackFideId "34548610"]
[WhiteElo "2506"]
[BlackElo "1368"]
[Result "1-0"]
[Round "01"]
[TimeControl "180+1"]
[Date "2022.04.13"]
[WhiteClock "0:00:06"]
[BlackClock "0:00:16"]

1. d4 {[%clk 0:02:57]}  Nf6 {[%clk 0:02:59]} 2. Nf3 {[%clk 0:02:56]}  g6 {[%clk 0:03:00]} 3. g3 {[%clk 0:02:52]}  Bg7 {[%clk 0:03:00]} 4. Bg2 {[%clk 0:02:52]}  O-O {[%clk 0:03:01]} 5. O-O {[%clk 0:02:52]}  d5 {[%clk 0:03:01]} 6. a4 {[%clk 0:02:52]}  a5 {[%clk 0:02:56]} 7. c3 {[%clk 0:02:49]}  Nbd7 {[%clk 0:02:47]} 8. Bf4 {[%clk 0:02:47]}  c6 {[%clk 0:02:47]} 9. Qb3 {[%clk 0:02:45]}  Qb6 {[%clk 0:02:42]} 10. Nbd2 {[%clk 0:02:45]}  Ne4 {[%clk 0:02:37]} 11. Qxb6 {[%clk 0:01:56]}  Nxb6 {[%clk 0:02:38]} 12. Bc7 {[%clk 0:01:50]}  Nxd2 {[%clk 0:02:31]} 13. Nxd2 {[%clk 0:01:51]}  Nd7 {[%clk 0:02:32]} 14. e4 {[%clk 0:01:47]}  dxe4 {[%clk 0:02:28]} 15. Nxe4 {[%clk 0:01:45]}  Nf6 {[%clk 0:02:25]} 16. Nxf6+ {[%clk 0:01:25]}  Bxf6 {[%clk 0:02:26]} 17. Rfe1 {[%clk 0:01:24]}  Be6 {[%clk 0:02:18]} 18. Rxe6 {[%clk 0:01:18]}  fxe6 {[%clk 0:02:18]} 19. Bh3 {[%clk 0:01:17]}  Kg7 {[%clk 0:02:04]} 20. Bxe6 {[%clk 0:01:10]}  Ra6 {[%clk 0:01:58]} 21. Bc4 {[%clk 0:00:51]}  Ra7 {[%clk 0:01:58]} 22. Bb6 {[%clk 0:00:49]}  Raa8 {[%clk 0:01:57]} 23. Re1 {[%clk 0:00:49]}  Rfd8 {[%clk 0:01:39]} 24. f4 {[%clk 0:00:41]}  Rd6 {[%clk 0:01:32]} 25. Kg2 {[%clk 0:00:36]}  g5 {[%clk 0:01:28]} 26. f5 {[%clk 0:00:32]}  g4 {[%clk 0:01:22]} 27. Re4 {[%clk 0:00:30]}  h5 {[%clk 0:01:22]} 28. Be6 {[%clk 0:00:23]}  Bg5 {[%clk 0:01:19]} 29. h3 {[%clk 0:00:20]}  gxh3+ {[%clk 0:01:18]} 30. Kxh3 {[%clk 0:00:21]}  Bc1 {[%clk 0:01:12]} 31. Re2 {[%clk 0:00:22]}  Kf6 {[%clk 0:01:10]} 32. Kg2 {[%clk 0:00:16]}  Rdd8 {[%clk 0:00:58]} 33. Kf3 {[%clk 0:00:15]}  Rh8 {[%clk 0:00:56]} 34. Bc7 {[%clk 0:00:13]}  h4 {[%clk 0:00:54]} 35. Be5+ {[%clk 0:00:13]}  Kg5 {[%clk 0:00:53]} 36. gxh4+ {[%clk 0:00:12]}  Rxh4 {[%clk 0:00:47]} 37. Rg2+ {[%clk 0:00:12]}  Kh6 {[%clk 0:00:46]} 38. Rg6+ {[%clk 0:00:12]}  Kh7 {[%clk 0:00:46]} 39. Rg7+ {[%clk 0:00:12]}  Kh6 {[%clk 0:00:46]} 40. Rxe7 {[%clk 0:00:12]}  Bg5 {[%clk 0:00:39]} 41. Rg7 {[%clk 0:00:10]}  Rh3+ {[%clk 0:00:36]} 42. Kg4 {[%clk 0:00:09]}  Rh1 {[%clk 0:00:34]} 43. Rg6+ {[%clk 0:00:09]}  Kh7 {[%clk 0:00:33]} 44. Kxg5 {[%clk 0:00:10]}  Rg1+ {[%clk 0:00:32]} 45. Kf6 {[%clk 0:00:09]}  Rf8+ {[%clk 0:00:28]} 46. Ke7 {[%clk 0:00:07]}  Ra8 {[%clk 0:00:16]} 47. Rxg1 {[%clk 0:00:06]} 1-0


[Site "https://www.chess.com"]

[Event "Titled Tuesday Blitz April 12 Early 2022"]
[White "Moroni, Luca Jr"]
[Black "Bures, Vit"]
[WhiteFideId "865834"]
[BlackFideId "309052"]
[WhiteElo "2573"]
[BlackElo "2079"]
[Result "1-0"]
[Round "01"]
[TimeControl "180+1"]
[Date "2022.04.13"]
[WhiteClock "0:01:19"]
[BlackClock "0:00:59"]

1. d4 {[%clk 0:03:00]}  d5 {[%clk 0:02:58]} 2. Nf3 {[%clk 0:03:00]}  Nf6 {[%clk 0:02:58]} 3. c4 {[%clk 0:03:00]}  c6 {[%clk 0:02:58]} 4. e3 {[%clk 0:03:00]}  Bg4 {[%clk 0:02:57]} 5. h3 {[%clk 0:02:58]}  Bh5 {[%clk 0:02:57]} 6. Nc3 {[%clk 0:02:56]}  e6 {[%clk 0:02:56]} 7. g4 {[%clk 0:02:56]}  Bg6 {[%clk 0:02:56]} 8. Qb3 {[%clk 0:02:54]}  Qb6 {[%clk 0:02:55]} 9. Ne5 {[%clk 0:02:54]}  Nbd7 {[%clk 0:02:53]} 10. Nxg6 {[%clk 0:02:53]}  hxg6 {[%clk 0:02:52]} 11. Bg2 {[%clk 0:02:47]}  g5 {[%clk 0:02:36]} 12. Bd2 {[%clk 0:02:45]}  Qxb3 {[%clk 0:02:25]} 13. axb3 {[%clk 0:02:45]}  Bd6 {[%clk 0:02:23]} 14. e4 {[%clk 0:02:34]}  dxe4 {[%clk 0:02:21]} 15. Bxg5 {[%clk 0:02:25]}  Bb4 {[%clk 0:02:18]} 16. Ke2 {[%clk 0:02:23]}  Bxc3 {[%clk 0:01:51]} 17. bxc3 {[%clk 0:02:21]}  a6 {[%clk 0:01:51]} 18. Ke3 {[%clk 0:02:20]}  O-O {[%clk 0:01:45]} 19. Bxe4 {[%clk 0:01:54]}  Nxe4 {[%clk 0:01:43]} 20. Kxe4 {[%clk 0:01:54]}  f5+ {[%clk 0:01:42]} 21. Ke3 {[%clk 0:01:53]}  fxg4 {[%clk 0:01:25]} 22. hxg4 {[%clk 0:01:54]}  e5 {[%clk 0:01:26]} 23. d5 {[%clk 0:01:48]}  cxd5 {[%clk 0:01:24]} 24. cxd5 {[%clk 0:01:48]}  Rac8 {[%clk 0:01:15]} 25. c4 {[%clk 0:01:45]}  Nf6 {[%clk 0:01:08]} 26. f3 {[%clk 0:01:37]}  e4 {[%clk 0:00:58]} 27. Bxf6 {[%clk 0:01:30]}  exf3 {[%clk 0:00:58]} 28. Be7 {[%clk 0:01:26]}  Rce8 {[%clk 0:00:58]} 29. d6 {[%clk 0:01:26]}  Rf6 {[%clk 0:00:59]} 30. Kf2 {[%clk 0:01:19]} 1-0


[Site "https://www.chess.com"]

[Event "Titled Tuesday Blitz April 12 Early 2022"]
[White "Muradov, Soltan"]
[Black "Harshavardhan G B"]
[WhiteFideId "14002108"]
[BlackFideId "25059009"]
[WhiteElo "1854"]
[BlackElo "1831"]
[Result "0-1"]
[Round "01"]
[TimeControl "180+1"]
[Date "2022.04.13"]
[WhiteClock "0:00:05"]
[BlackClock "0:01:03"]

1. d4 {[%clk 0:03:00]}  Nf6 {[%clk 0:02:53]} 2. c4 {[%clk 0:03:01]}  e5 {[%clk 0:02:50]} 3. e3 {[%clk 0:02:53]}  exd4 {[%clk 0:02:48]} 4. exd4 {[%clk 0:02:54]}  d5 {[%clk 0:02:48]} 5. c5 {[%clk 0:02:52]}  g6 {[%clk 0:02:46]} 6. Nc3 {[%clk 0:02:52]}  Bg7 {[%clk 0:02:46]} 7. Bd3 {[%clk 0:02:53]}  O-O {[%clk 0:02:46]} 8. Nge2 {[%clk 0:02:53]}  Nc6 {[%clk 0:02:46]} 9. O-O {[%clk 0:02:51]}  Re8 {[%clk 0:02:45]} 10. Bg5 {[%clk 0:02:44]}  h6 {[%clk 0:02:39]} 11. Bh4 {[%clk 0:02:44]}  Ne7 {[%clk 0:02:29]} 12. Bxf6 {[%clk 0:01:28]}  Bxf6 {[%clk 0:02:30]} 13. Qd2 {[%clk 0:01:28]}  Bg7 {[%clk 0:02:28]} 14. b4 {[%clk 0:01:20]}  Bf5 {[%clk 0:02:24]} 15. b5 {[%clk 0:01:17]}  Qd7 {[%clk 0:02:20]} 16. Bxf5 {[%clk 0:00:55]}  Nxf5 {[%clk 0:02:21]} 17. Rad1 {[%clk 0:00:52]}  c6 {[%clk 0:02:14]} 18. a4 {[%clk 0:00:52]}  Re7 {[%clk 0:02:08]} 19. Qf4 {[%clk 0:00:40]}  Rae8 {[%clk 0:02:06]} 20. Ng3 {[%clk 0:00:40]}  Nxg3 {[%clk 0:01:56]} 21. hxg3 {[%clk 0:00:39]}  h5 {[%clk 0:01:45]} 22. bxc6 {[%clk 0:00:32]}  bxc6 {[%clk 0:01:37]} 23. Rb1 {[%clk 0:00:32]}  Kh7 {[%clk 0:01:33]} 24. a5 {[%clk 0:00:32]}  Bh6 {[%clk 0:01:27]} 25. Qf3 {[%clk 0:00:32]}  Bg7 {[%clk 0:01:26]} 26. Rfd1 {[%clk 0:00:29]}  Qc8 {[%clk 0:01:25]} 27. Qd3 {[%clk 0:00:27]}  Bf6 {[%clk 0:01:22]} 28. Qf3 {[%clk 0:00:26]}  Kg7 {[%clk 0:01:22]} 29. Qd3 {[%clk 0:00:23]}  h4 {[%clk 0:01:21]} 30. gxh4 {[%clk 0:00:22]}  Bxh4 {[%clk 0:01:22]} 31. a6 {[%clk 0:00:21]}  Bf6 {[%clk 0:01:22]} 32. Rd2 {[%clk 0:00:17]}  Rh8 {[%clk 0:01:21]} 33. Ne2 {[%clk 0:00:17]}  Re4 {[%clk 0:01:13]} 34. Ng3 {[%clk 0:00:16]}  Rxd4 {[%clk 0:01:09]} 35. Qe3 {[%clk 0:00:11]}  Rdh4 {[%clk 0:01:07]} 36. Rb7 {[%clk 0:00:10]}  Re8 {[%clk 0:01:07]} 37. Qf3 {[%clk 0:00:05]}  Re1+ {[%clk 0:01:05]} 38. Nf1 {[%clk 0:00:06]}  Qh8 {[%clk 0:01:04]} 39. g3 {[%clk 0:00:04]}  Rh1+ {[%clk 0:01:03]} 40. Qxh1 {[%clk 0:00:04]}  Rxf1+ {[%clk 0:01:04]} 41. Kxf1 {[%clk 0:00:04]}  Qxh1+ {[%clk 0:01:04]} 42. Ke2 {[%clk 0:00:05]}  Qe4+ {[%clk 0:01:05]} 43. Kf1 {[%clk 0:00:05]}  Bc3 {[%clk 0:01:03]} 44. Re2 {[%clk 0:00:05]}  Qh1# {[%clk 0:01:03]} 0-1


[Site "https://www.chess.com"]